lending/lending_fUSD_20251015
["ID","MTS","AMOUNT","RATE_DAILY","PERIOD"]
[391320158,1760519432396,-500.0,0.000149,2]
[391320159,1760519432405,-500.0,0.000149,2]
[391320160,1760519432420,-500.0,0.000149,2]
[391320161,1760519432430,-500.0,0.000149,2]
[391320162,1760519432439,-500.0,0.000149,2]
[391320163,1760519432448,-178.69651892,0.000149,2]
[391320164,1760519432457,-312.12545906,0.000149,2]
[391320165,1760519432467,-3651.82586567,0.000149,2]
[391320166,1760519432477,-266.48826274,0.000149,2]
[391320167,1760519432486,-163.06014578,0.000149,2]
[391320168,1760519432495,-2674.0,0.00014932,2]
[391320169,1760519432505,-3862.0,0.00014932,2]
[391320170,1760519432514,-168.0,0.0001494,2]
[391320171,1760519432523,-201.01884101,0.00014958,2]
[391320172,1760519432532,-500.0,0.00014958,2]
[391320173,1760519432541,-150.0,0.00014958,2]
[391320174,1760519432550,-500.0,0.00014958,2]
[391320175,1760519432559,-500.0,0.00014958,2]
[391320176,1760519432568,-150.0,0.00014958,2]
[391320177,1760519432577,-500.0,0.00014958,2]
[391320178,1760519432586,-500.0,0.00014958,2]
[391320179,1760519432595,-500.0,0.00014958,2]
[391320180,1760519432605,-500.0,0.00014958,2]
[391320181,1760519432614,-150.0,0.00014958,2]
[391320182,1760519432623,-500.0,0.00014958,2]
[391320183,1760519432632,-150.0,0.00014958,2]
[391320184,1760519432642,-150.0,0.00014958,2]
[391320185,1760519432651,-150.0,0.00014958,2]
[391320186,1760519432660,-500.0,0.00014958,2]
[391320187,1760519432669,-150.0,0.00014958,2]
[391320188,1760519432679,-150.0,0.00014958,2]
[391320189,1760519432688,-150.0,0.00014958,2]
[391320190,1760519432698,-500.0,0.00014958,2]
[391320191,1760519432707,-500.0,0.00014958,2]
[391320192,1760519432716,-153.51618597,0.00014958,2]
[391320193,1760519432726,-150.0,0.00014958,2]
[391320194,1760519432735,-300.0,0.00014958,2]
[391320195,1760519432745,-150.0,0.00014958,2]
[391320196,1760519432754,-150.0,0.00014958,2]
[391320197,1760519432763,-500.0,0.00014958,2]
[391320198,1760519432772,-150.0,0.00014958,2]
[391320199,1760519432782,-500.0,0.00014958,2]
[391320200,1760519432791,-167.62,0.0001496,2]
[391320201,1760519432800,-167.62,0.0001496,2]
[391320202,1760519432809,-167.62,0.0001496,2]
[391320203,1760519432818,-167.62,0.0001496,2]
[391320204,1760519432828,-167.62,0.0001496,2]
[391320205,1760519432838,-913.22719611,0.0001496,2]
[391320206,1760519432847,-1054.0,0.00014964,2]
[391320207,1760519432856,-258.43111274,0.00014969,2]
[391320208,1760519432866,-180.90177891,0.00014969,2]
[391320209,1760519432875,-500.0,0.00014969,2]
[391320210,1760519432885,-500.0,0.00014969,2]
[391320211,1760519432894,-500.0,0.00014969,2]
[391320212,1760519432904,-273.40968633,0.00014969,2]
[391320213,1760519432913,-586.06657021,0.00014969,2]
[391320214,1760519432927,-1030.0,0.0001497,2]
[391320215,1760519432942,-7382.52157883,0.0001497,2]
[391320216,1760519432951,-500.0,0.0001497,2]
[391320217,1760519432961,-500.0,0.0001497,2]
[391320218,1760519432970,-635.11262399,0.0001497,2]
[391320219,1760519432979,-1000.0,0.0001497,2]
[391320220,1760519432989,-1000.0,0.0001497,2]
[391320221,1760519432999,-1267.53153406,0.0001497,2]
[391320222,1760519433008,-60093.45891993,0.0001497,3]
[391320223,1760519433021,-56657.98309517,0.0001497,3]
[391320224,1760519433044,-6652.15648369,0.0001497,3]
[391320225,1760519433068,-66506.48958798,0.0001497,3]
[391320226,1760519433081,-88060.23419843,0.0001497,3]
[391320227,1760519433101,-121123.05471007,0.0001497,3]
[391320228,1760519433119,-1022.55808677,0.0001497,3]
[391320229,1760519433130,-1034.75559996,0.0001497,3]
[391320230,1760519433167,-274.73006917,0.0001497,3]
[391320231,1760519433177,-1305.0,0.0001497,3]
[391320239,1760519437629,-426.9901016,0.0001497,3]
[391320240,1760519437686,-10393.2,0.0001497,3]
[391320241,1760519437697,-22228.04960915,0.0001497,3]
[391320242,1760519437852,-2242.6,0.0001497,3]
[391320260,1760519440411,-5455.91146798,0.0001497,3]
[391320261,1760519440467,-858.47467712,0.0001497,3]
[391320262,1760519440478,-422011.92609693,0.0001497,3]
[391320263,1760519440488,-3072.83869956,0.0001497,3]
[391320264,1760519440499,-2576.39276425,0.0001497,3]
[391320267,1760519442813,-667508.44074498,0.0001497,3]
[391320269,1760519445623,-12003.392439,0.0001497,3]
[391320270,1760519445678,-382.54356,0.0001497,3]
[391320271,1760519445690,-9186.3076373,0.0001497,3]
[391320272,1760519445735,-266.875,0.0001497,3]
[391320273,1760519445746,-5556.5,0.0001497,3]
[391320274,1760519445757,-1238.44537652,0.0001497,3]
[391320275,1760519445796,-1754.19040315,0.0001497,3]
[391320276,1760519445853,-11170.34124419,0.0001497,3]
[391320277,1760519452109,1368.0,0.00030239,63]
[391320279,1760519543270,1011.36,0.00027397,120]
[391320281,1760519572606,1432.68652906,0.00027397,120]
[391320285,1760519699386,2000.0,0.00030239,30]
[391320286,1760519703196,2000.0,0.00030239,30]
[391320287,1760519718490,2208.65,0.00030239,30]
[391320321,1760519965397,352.11239127,0.0003025,120]
[391320322,1760519965643,1000.0,0.0003025,30]
[391320323,1760519967283,1000.0,0.0003025,30]
[391320324,1760519967969,1000.0,0.0003025,30]
[391320325,1760519968839,1000.0,0.0003025,30]
[391320326,1760519970898,1000.0,0.0003025,30]
[391320327,1760519973234,1000.0,0.0003025,30]
[391320328,1760519974817,1000.0,0.0003025,30]
[391320329,1760520091521,6012.0,0.00013698,30]
[391320334,1760520234246,-175.57627384,0.0002,30]
[391320335,1760520234280,-24.42372616,0.000209,30]
[391320336,1760520238096,-200.0,0.000209,30]
[391320338,1760520247334,-200.0,0.000209,30]
[391320339,1760520258221,-200.0,0.000209,30]
[391320340,1760520260889,-200.0,0.000209,30]
[391320341,1760520285636,-200.0,0.000209,30]
[391320342,1760520287609,-200.0,0.000209,30]
[391320343,1760520298676,-200.0,0.000209,30]
[391320344,1760520302176,-200.0,0.000209,30]
[391320351,1760520415801,-55.47657799,0.000209,30]
[391320352,1760520415831,-144.52342201,0.0002142,30]
[391320372,1760520632918,-666.0,0.00013654,3]
[391320373,1760520632927,-166.66,0.00013699,2]
[391320374,1760520632936,-250.0,0.00013702,2]
[391320375,1760520632946,-245.0,0.00013715,2]
[391320376,1760520632955,-300.0,0.00013715,2]
[391320377,1760520632964,-1200.0,0.00013715,2]
[391320378,1760520632974,-247.58414114,0.00013716,2]
[391320379,1760520632989,-5266.00585886,0.00013716,2]
[391320380,1760520632998,-2425.12,0.00013887,2]
[391320381,1760520633007,-166.66,0.00013897,2]
[391320382,1760520633016,-5119.16,0.00013991,2]
[391320383,1760520633025,-2751.0,0.00013991,2]
[391320384,1760520633035,-610.0,0.00013991,2]
[391320385,1760520633043,-277.35679052,0.0001409,2]
[391320386,1760520633053,-166.66,0.00014095,2]
[391320387,1760520633062,-166.66,0.00014294,2]
[391320388,1760520633072,-153.44,0.00014391,2]
[391320389,1760520633081,-322.6107,0.00014491,2]
[391320390,1760520633090,-151.0,0.00014491,2]
[391320391,1760520633100,-500.0,0.00014491,2]
[391320392,1760520633109,-166.66,0.00014492,2]
[391320393,1760520633119,-150.0,0.00014499,2]
[391320394,1760520633129,-19810.57887785,0.000145,2]
[391320395,1760520633138,-299.99,0.00014504,2]
[391320396,1760520633148,-150.99,0.00014504,2]
[391320397,1760520633158,-150.99,0.00014504,2]
[391320398,1760520633168,-999.99,0.00014504,2]
[391320399,1760520633177,-3650.91,0.00014504,2]
[391320400,1760520633186,-876.22302097,0.0001466,2]
[391320401,1760520633195,-166.66,0.00014691,2]
[391320402,1760520633204,-844.9803582,0.00014696,2]
[391320403,1760520633213,-3885.78334,0.0001482,2]
[391320404,1760520633223,-3885.78334,0.0001484,2]
[391320405,1760520633232,-200.0,0.00014863,2]
[391320406,1760520633241,-160.37401312,0.0001487,2]
[391320407,1760520633251,-157.88136715,0.0001487,2]
[391320408,1760520633260,-4946.11479445,0.0001487,2]
[391320409,1760520633268,-178.69651893,0.0001487,2]
[391320410,1760520633278,-266.23082958,0.0001487,2]
[391320411,1760520633287,-4050.4157,0.0001487,2]
[391320412,1760520633296,-3886.6037,0.0001487,2]
[391320413,1760520633306,-5000.0,0.0001487,2]
[391320414,1760520633315,-4946.1147944,0.00014873,2]
[391320415,1760520633324,-266.23082958,0.00014875,2]
[391320416,1760520633332,-4946.1147944,0.00014877,2]
[391320417,1760520633342,-160.37401312,0.0001488,2]
[391320418,1760520633351,-4946.1147944,0.0001488,2]
[391320419,1760520633359,-4946.1147944,0.00014883,2]
[391320420,1760520633369,-4946.1147944,0.00014887,2]
[391320421,1760520633378,-160.37401312,0.0001489,2]
[391320422,1760520633387,-4946.1147944,0.0001489,2]
[391320423,1760520633396,-4946.1147944,0.00014893,2]
[391320424,1760520633405,-208.08363938,0.00014896,2]
[391320425,1760520633414,-4946.1147944,0.00014897,2]
[391320426,1760520633423,-160.37401312,0.000149,2]
[391320427,1760520633431,-2968.018,0.000149,2]
[391320428,1760520633440,-1000.0,0.000149,2]
[391320429,1760520633449,-178.69651893,0.000149,2]
[391320430,1760520633458,-182.28951196,0.000149,2]
[391320431,1760520633467,-4946.1147944,0.000149,2]
[391320432,1760520633480,-195.0,0.00014909,2]
[391320433,1760520633489,-300.0,0.00014909,2]
[391320434,1760520633498,-250.0,0.00014909,2]
[391320435,1760520633507,-250.0,0.00014909,2]
[391320436,1760520633516,-150.0,0.00014909,2]
[391320437,1760520633526,-195.0,0.00014909,2]
[391320438,1760520633535,-195.0,0.00014909,2]
[391320439,1760520633543,-2000.0,0.00014909,2]
[391320440,1760520633555,-300.0,0.00014909,2]
[391320441,1760520633564,-300.0,0.00014909,2]
[391320442,1760520633573,-300.0,0.00014909,2]
[391320443,1760520633582,-150.0,0.00014909,2]
[391320444,1760520633590,-250.0,0.00014909,2]
[391320445,1760520633599,-281.45519241,0.00014909,2]
[391320446,1760520633608,-2500.0,0.00014909,2]
[391320447,1760520633617,-300.0,0.00014909,2]
[391320448,1760520633626,-383.42224889,0.00014909,2]
[391320449,1760520633634,-173.804,0.00014921,2]
[391320450,1760520633643,-500.0,0.00014955,2]
[391320451,1760520633653,-500.0,0.00014958,2]
[391320452,1760520633662,-150.0,0.00014958,2]
[391320453,1760520633671,-500.0,0.00014958,2]
[391320454,1760520633680,-500.0,0.00014958,2]
[391320455,1760520633688,-500.0,0.00014958,2]
[391320456,1760520633698,-243.98829258,0.00014958,2]
[391320457,1760520633706,-500.0,0.00014958,2]
[391320458,1760520633715,-150.0,0.00014958,2]
[391320459,1760520633723,-300.0,0.00014958,2]
[391320460,1760520633732,-150.0,0.00014958,2]
[391320461,1760520633742,-150.0,0.00014958,2]
[391320462,1760520633751,-150.0,0.00014958,2]
[391320463,1760520633760,-284.15834705,0.00014958,2]
[391320464,1760520633769,-500.0,0.00014958,2]
[391320465,1760520633778,-150.0,0.00014958,2]
[391320466,1760520633787,-721.97842604,0.0001496,2]
[391320467,1760520633796,-721.97842604,0.0001496,2]
[391320468,1760520633805,-151.0,0.00014967,2]
[391320469,1760520633814,-632.85419595,0.00014969,2]
[391320470,1760520633823,-179.91031443,0.00014969,2]
[391320471,1760520633833,-565.95414233,0.00014969,2]
[391320472,1760520633842,-178.53268034,0.00014969,2]
[391320473,1760520633850,-150.0,0.00014969,2]
[391320474,1760520633859,-500.0,0.00014969,2]
[391320475,1760520633868,-1259.0,0.0001497,2]
[391320476,1760520633877,-800.0,0.0001497,2]
[391320477,1760520633886,-42972.24114485,0.0001497,3]
[391320478,1760520633898,-22314.84281081,0.0001497,3]
[391320479,1760520633909,-4172.60000008,0.0001497,3]
[391320480,1760520634297,-27242.283309,0.0001497,3]
[391320481,1760520634320,-387.4358884,0.0001497,3]
[391320483,1760520637725,-266.23082958,0.0001488,2]
[391320484,1760520637734,-722.18052879,0.0001497,3]
[391320485,1760520637744,-2565.17802781,0.0001497,3]
[391320486,1760520637754,-708.14120299,0.0001497,3]
[391320487,1760520637765,-14438.82183443,0.0001497,3]
[391320488,1760520637775,-9864.83172179,0.0001497,3]
[391320489,1760520637801,-8831.05152797,0.0001497,3]
[391320490,1760520637879,-1012.72280528,0.0001497,3]
[391320491,1760520637937,-22363.50000005,0.0001497,3]
[391320492,1760520637948,-1208.75963246,0.0001497,3]
[391320530,1760520639862,-338.96863,0.00013991,2]
[391320531,1760520639918,-161.03137,0.00013991,2]
[391320532,1760520639928,-103.38863,0.0001497,3]
[391320533,1760520639939,-1344479.59289221,0.0001497,3]
[391320534,1760520639948,-517.83,0.0001497,2]
[391320535,1760520639958,-1923.2046895,0.0001497,3]
[391320536,1760520639967,-823.3505026,0.0001497,2]
[391320537,1760520639976,-500.0,0.0001497,2]
[391320538,1760520639986,-151.0,0.0001497,2]
[391320539,1760520639996,-1000.0,0.0001497,2]
[391320540,1760520640006,-1000.0,0.0001497,2]
[391320541,1760520640016,-150.0,0.0001497,3]
[391320542,1760520640025,-150.0,0.0001497,3]
[391320543,1760520640035,-500.0,0.0001497,3]
[391320544,1760520640044,-500.0,0.0001497,3]
[391320545,1760520640053,-150.0,0.0001497,3]
[391320546,1760520640062,-150.0,0.0001497,3]
[391320547,1760520640071,-150.0,0.0001497,3]
[391320548,1760520640081,-500.0,0.0001497,3]
[391320549,1760520640091,-150.0,0.0001497,3]
[391320550,1760520640100,-150.0,0.0001497,3]
[391320551,1760520640109,-150.0,0.0001497,3]
[391320552,1760520640119,-500.0,0.0001497,3]
[391320553,1760520640130,-150.0,0.0001497,3]
[391320554,1760520640140,-150.0,0.0001497,3]
[391320555,1760520640149,-1038719.91944473,0.0001497,3]
[391320556,1760520640159,-3885.78334,0.0001497,2]
[391320557,1760520640168,-3885.78334,0.0001497,2]
[391320558,1760520640177,-3885.78334,0.0001497,2]
[391320559,1760520640186,-3885.78335,0.0001497,2]
[391320561,1760520640195,-2000.0,0.0001497,2]
[391320562,1760520640205,-2000.0,0.0001497,2]
[391320563,1760520640214,-2000.0,0.0001497,2]
[391320564,1760520640223,-537.18449521,0.0001497,2]
[391320565,1760520640233,-2000.0,0.0001497,2]
[391320566,1760520640242,-2000.0,0.0001497,2]
[391320567,1760520640251,-2000.0,0.0001497,2]
[391320568,1760520640261,-2000.0,0.0001497,2]
[391320569,1760520640270,-2000.0,0.0001497,2]
[391320570,1760520640279,-2000.0,0.0001497,2]
[391320571,1760520640289,-2000.0,0.0001497,2]
[391320572,1760520640298,-222.558,0.0001497,2]
[391320573,1760520640307,-1000.0,0.0001497,2]
[391320574,1760520640316,-1000.0,0.0001497,2]
[391320575,1760520640326,-1000.0,0.0001497,2]
[391320576,1760520640335,-1000.0,0.0001497,2]
[391320577,1760520640344,-1000.0,0.0001497,2]
[391320578,1760520640353,-1000.0,0.0001497,2]
[391320579,1760520640363,-1000.0,0.0001497,2]
[391320580,1760520640373,-1000.0,0.0001497,2]
[391320581,1760520640383,-1000.0,0.0001497,2]
[391320582,1760520640392,-1000.0,0.0001497,2]
[391320583,1760520640402,-1000.0,0.0001497,2]
[391320584,1760520640412,-1000.0,0.0001497,2]
[391320585,1760520640421,-1000.0,0.0001497,2]
[391320586,1760520640430,-1000.0,0.0001497,2]
[391320587,1760520640439,-1000.0,0.0001497,2]
[391320588,1760520640448,-595.195,0.0001497,2]
[391320589,1760520640457,-151.0,0.0001497,2]
[391320590,1760520640467,-151.0,0.0001497,2]
[391320591,1760520640494,-151.0,0.0001497,2]
[391320592,1760520640509,-151.0,0.0001497,2]
[391320593,1760520640526,-151.0,0.0001497,2]
[391320594,1760520640542,-151.0,0.0001497,2]
[391320595,1760520640560,-151.0,0.0001497,2]
[391320596,1760520640572,-803.848671,0.0001497,2]
[391320597,1760520640589,-803.848671,0.0001497,2]
[391320598,1760520640605,-803.848671,0.0001497,2]
[391320599,1760520640621,-160.967429,0.0001497,2]
[391320600,1760520640638,-370.193811,0.0001497,2]
[391320601,1760520640652,-803.848671,0.0001497,2]
[391320602,1760520640669,-160.967429,0.0001497,2]
[391320603,1760520640685,-370.193811,0.0001497,2]
[391320604,1760520640700,-160.967429,0.0001497,2]
[391320605,1760520640718,-370.193811,0.0001497,2]
[391320606,1760520640736,-160.967429,0.0001497,2]
[391320607,1760520640748,-370.193811,0.0001497,2]
[391320608,1760520640761,-156.548807,0.0001497,2]
[391320609,1760520640779,-156.548807,0.0001497,2]
[391320610,1760520640790,-156.548807,0.0001497,2]
[391320611,1760520640803,-156.548807,0.0001497,2]
[391320612,1760520640821,-568.688474,0.0001497,2]
[391320613,1760520640834,-568.688474,0.0001497,2]
[391320614,1760520640846,-568.688474,0.0001497,2]
[391320615,1760520640859,-151.0,0.0001497,2]
[391320616,1760520640891,-568.688474,0.0001497,2]
[391320617,1760520640907,-151.0,0.0001497,2]
[391320618,1760520640921,-151.0,0.0001497,2]
[391320619,1760520640936,-151.0,0.0001497,2]
[391320620,1760520640952,-152.056058,0.0001497,2]
[391320621,1760520640966,-151.0,0.0001497,2]
[391320622,1760520640981,-151.0,0.0001497,2]
[391320623,1760520640995,-204.752403,0.0001497,2]
[391320624,1760520641011,-151.0,0.0001497,2]
[391320625,1760520641025,-2392.521845,0.0001497,2]
[391320626,1760520641038,-151.0,0.0001497,2]
[391320627,1760520641053,-204.752403,0.0001497,2]
[391320628,1760520641068,-2392.521845,0.0001497,2]
[391320629,1760520641082,-204.752403,0.0001497,2]
[391320630,1760520641096,-2392.521845,0.0001497,2]
[391320631,1760520641110,-151.0,0.0001497,2]
[391320632,1760520641125,-204.752403,0.0001497,2]
[391320633,1760520641140,-151.0,0.0001497,2]
[391320634,1760520641153,-2392.521845,0.0001497,2]
[391320635,1760520641167,-151.0,0.0001497,2]
[391320636,1760520641181,-151.0,0.0001497,2]
[391320637,1760520641196,-151.0,0.0001497,2]
[391320638,1760520641210,-404.059553,0.0001497,2]
[391320639,1760520641224,-6307.881477,0.0001497,2]
[391320640,1760520641238,-151.0,0.0001497,2]
[391320641,1760520641252,-404.059553,0.0001497,2]
[391320642,1760520641266,-324.654754,0.0001497,2]
[391320643,1760520641280,-151.0,0.0001497,2]
[391320644,1760520641294,-404.059553,0.0001497,2]
[391320645,1760520641308,-6307.881477,0.0001497,2]
[391320646,1760520641322,-151.0,0.0001497,2]
[391320647,1760520641335,-324.654754,0.0001497,2]
[391320648,1760520641349,-404.059553,0.0001497,2]
[391320649,1760520641363,-6307.881477,0.0001497,2]
[391320650,1760520641384,-151.0,0.0001497,2]
[391320651,1760520641402,-151.0,0.0001497,2]
[391320652,1760520641419,-1155.503092,0.0001497,2]
[391320653,1760520641435,-324.654754,0.0001497,2]
[391320654,1760520641452,-6307.881477,0.0001497,2]
[391320655,1760520641469,-151.0,0.0001497,2]
[391320656,1760520641488,-1155.503092,0.0001497,2]
[391320657,1760520641504,-151.0,0.0001497,2]
[391320658,1760520641520,-151.0,0.0001497,2]
[391320659,1760520641537,-324.654754,0.0001497,2]
[391320660,1760520641552,-1155.503092,0.0001497,2]
[391320661,1760520641567,-292.280571,0.0001497,2]
[391320662,1760520641582,-505.231172,0.0001497,2]
[391320663,1760520641598,-238.237373,0.0001497,2]
[391320664,1760520641612,-1155.503092,0.0001497,2]
[391320665,1760520641627,-151.0,0.0001497,2]
[391320666,1760520641641,-505.231172,0.0001497,2]
[391320667,1760520641655,-238.237373,0.0001497,2]
[391320668,1760520641670,-151.0,0.0001497,2]
[391320669,1760520641684,-151.0,0.0001497,2]
[391320670,1760520641698,-505.231172,0.0001497,2]
[391320671,1760520641712,-238.237373,0.0001497,2]
[391320672,1760520641725,-151.0,0.0001497,2]
[391320673,1760520641739,-505.231172,0.0001497,2]
[391320674,1760520641754,-590.567436,0.0001497,2]
[391320675,1760520641767,-238.237373,0.0001497,2]
[391320676,1760520641781,-590.567436,0.0001497,2]
[391320677,1760520641794,-151.0,0.0001497,2]
[391320678,1760520641808,-151.0,0.0001497,2]
[391320679,1760520641821,-151.0,0.0001497,2]
[391320680,1760520641834,-151.0,0.0001497,2]
[391320681,1760520641847,-590.567436,0.0001497,2]
[391320682,1760520641860,-151.0,0.0001497,2]
[391320683,1760520641874,-151.0,0.0001497,2]
[391320684,1760520641886,-151.0,0.0001497,2]
[391320685,1760520641900,-590.567436,0.0001497,2]
[391320686,1760520641913,-151.0,0.0001497,2]
[391320687,1760520641926,-151.0,0.0001497,2]
[391320688,1760520641939,-151.0,0.0001497,2]
[391320689,1760520641952,-151.0,0.0001497,2]
[391320690,1760520641966,-151.0,0.0001497,2]
[391320691,1760520641979,-151.0,0.0001497,2]
[391320692,1760520641992,-151.0,0.0001497,2]
[391320693,1760520642005,-151.0,0.0001497,2]
[391320694,1760520642018,-151.0,0.0001497,2]
[391320695,1760520642030,-415.621897,0.0001497,2]
[391320696,1760520642044,-151.0,0.0001497,2]
[391320697,1760520642056,-415.621897,0.0001497,2]
[391320698,1760520642069,-151.0,0.0001497,2]
[391320699,1760520642082,-151.0,0.0001497,2]
[391320700,1760520642095,-415.621897,0.0001497,2]
[391320701,1760520642107,-415.621897,0.0001497,2]
[391320702,1760520642120,-151.0,0.0001497,2]
[391320703,1760520642137,-151.0,0.0001497,2]
[391320704,1760520642149,-151.0,0.0001497,2]
[391320705,1760520642163,-151.0,0.0001497,2]
[391320706,1760520642176,-151.0,0.0001497,2]
[391320707,1760520642189,-151.0,0.0001497,2]
[391320708,1760520642201,-151.0,0.0001497,2]
[391320709,1760520642214,-151.0,0.0001497,2]
[391320710,1760520642227,-151.0,0.0001497,2]
[391320711,1760520642240,-563.375596,0.0001497,2]
[391320712,1760520642253,-532.593208,0.0001497,2]
[391320713,1760520642265,-151.0,0.0001497,2]
[391320714,1760520642278,-563.375596,0.0001497,2]
[391320715,1760520642290,-532.593208,0.0001497,2]
[391320716,1760520642303,-151.0,0.0001497,2]
[391320717,1760520642315,-151.0,0.0001497,2]
[391320718,1760520642328,-151.0,0.0001497,2]
[391320719,1760520642341,-563.375596,0.0001497,2]
[391320720,1760520642354,-151.0,0.0001497,2]
[391320721,1760520642366,-532.593208,0.0001497,2]
[391320722,1760520642383,-151.0,0.0001497,2]
[391320723,1760520642396,-152.114882,0.0001497,2]
[391320724,1760520642410,-247.974329,0.0001497,2]
[391320725,1760520642423,-563.375596,0.0001497,2]
[391320726,1760520642439,-532.593208,0.0001497,2]
[391320727,1760520642452,-1035.138402,0.0001497,2]
[391320728,1760520642465,-457.073199,0.0001497,2]
[391320729,1760520642479,-457.073199,0.0001497,2]
[391320730,1760520642491,-457.073199,0.0001497,2]
[391320731,1760520642504,-151.0,0.0001497,2]
[391320732,1760520642517,-457.073199,0.0001497,2]
[391320733,1760520642530,-151.0,0.0001497,2]
[391320734,1760520642542,-151.0,0.0001497,2]
[391320735,1760520642556,-5981.69712,0.0001497,2]
[391320736,1760520642569,-151.0,0.0001497,2]
[391320737,1760520642581,-500.0,0.00014973,2]
[391320738,1760520642594,-500.0,0.00014973,2]
[391320739,1760520642606,-214.01852963,0.00014973,2]
[391320742,1760520642619,-533.15473545,0.00014973,2]
[391320744,1760520642635,-500.45473872,0.00014973,2]
[391320746,1760520642647,-500.0,0.00014973,2]
[391320748,1760520642660,-501.59337004,0.00014973,2]
[391320749,1760520642673,-500.81040045,0.00014973,2]
[391320750,1760520642686,-500.0,0.00014973,2]
[391320751,1760520642699,-500.0,0.00014973,2]
[391320752,1760520642711,-500.65389565,0.00014973,2]
[391320753,1760520642724,-500.0,0.00014973,2]
[391320754,1760520642737,-500.0,0.00014973,2]
[391320756,1760520642750,-500.0,0.00014973,2]
[391320757,1760520642762,-500.0,0.00014973,2]
[391320758,1760520642775,-500.0,0.00014973,2]
[391320759,1760520642788,-500.0,0.00014973,2]
[391320760,1760520642801,-500.0,0.00014973,2]
[391320761,1760520642814,-500.0,0.00014973,2]
[391320762,1760520642826,-500.0,0.00014973,2]
[391320763,1760520642839,-500.0,0.00014973,2]
[391320764,1760520642852,-500.0,0.00014973,2]
[391320765,1760520642865,-500.0,0.00014973,2]
[391320766,1760520642877,-500.0,0.00014973,2]
[391320767,1760520642889,-501.05788927,0.00014973,2]
[391320768,1760520642902,-500.0,0.00014973,2]
[391320769,1760520642915,-500.0,0.00014973,2]
[391320770,1760520642928,-500.0,0.00014973,2]
[391320771,1760520642940,-502.80166226,0.00014973,2]
[391320772,1760520642956,-165.27296534,0.00014973,2]
[391320773,1760520642972,-159.91145508,0.00014973,2]
[391320774,1760520642987,-174.21390984,0.00014973,2]
[391320775,1760520643000,-500.0,0.00014973,2]
[391320776,1760520643014,-500.0,0.00014973,2]
[391320777,1760520643027,-500.0,0.00014973,2]
[391320778,1760520643040,-500.0,0.00014973,2]
[391320779,1760520643054,-500.0,0.00014973,2]
[391320780,1760520643067,-479.26697898,0.00014973,2]
[391320781,1760520643081,-503.43410253,0.00014973,2]
[391320782,1760520643094,-1968.18,0.00014973,2]
[391320783,1760520643107,-33615.9064905,0.00014974,2]
[391320784,1760520643120,-3162.5963286,0.00014977,2]
[391320785,1760520643135,-314439.7086884,0.00014977,2]
[391320786,1760520643148,-151.0,0.00014977,2]
[391320787,1760520643161,-151.0,0.00014977,2]
[391320788,1760520643174,-151.0,0.00014977,2]
[391320789,1760520643186,-151.0,0.00014977,2]
[391320790,1760520643198,-563.375596,0.00014977,2]
[391320791,1760520643212,-532.593208,0.00014977,2]
[391320792,1760520643224,-151.0,0.00014977,2]
[391320793,1760520643236,-563.375596,0.00014977,2]
[391320794,1760520643249,-532.593208,0.00014977,2]
[391320795,1760520643261,-151.0,0.00014977,2]
[391320796,1760520643274,-151.0,0.00014977,2]
[391320797,1760520643285,-151.0,0.00014977,2]